fUST/lending_fUST_20240519
["ID","MTS","AMOUNT","RATE_DAILY","PERIOD"]
[327468429,1716096646200,-630.81465645,0.00016438,2]
[327468431,1716096646209,-501.40638356,0.00016438,2]
[327468433,1716096646219,-500.0,0.00016438,2]
[327468435,1716096646228,-858.16,0.00016438,2]
[327468437,1716096646238,-500.0,0.00016438,2]
[327468439,1716096646251,-500.0,0.00016438,2]
[327468441,1716096646260,-505.47853256,0.00016438,2]
[327468443,1716096646270,-500.0,0.00016438,2]
[327468445,1716096646279,-500.0,0.00016438,2]
[327468447,1716096646290,-500.0,0.00016438,2]
[327468449,1716096646299,-500.0,0.00016438,2]
[327468451,1716096646309,-506.74855011,0.00016438,2]
[327468453,1716096646319,-557.57,0.00016438,2]
[327468455,1716096646328,-500.0,0.00016438,2]
[327468457,1716096646338,-500.0,0.00016438,2]
[327468459,1716096646347,-331.86010088,0.00016438,2]
[327468461,1716096646356,-500.0,0.00016438,2]
[327468463,1716096646366,-500.0,0.00016438,2]
[327468465,1716096646375,-501.49857594,0.00016438,2]
[327468467,1716096646384,-775.48,0.00016438,2]
[327468469,1716096646393,-500.0,0.00016438,2]
[327468471,1716096646402,-501.82676646,0.00016438,2]
[327468473,1716096646412,-500.0,0.00016438,2]
[327468475,1716096646422,-500.0,0.00016438,2]
[327468477,1716096646431,-500.0,0.00016438,2]
[327468479,1716096646441,-501.38145173,0.00016438,2]
[327468481,1716096646450,-196.04758265,0.00016438,2]
[327468483,1716096646459,-1009.89,0.00016438,2]
[327468485,1716096646468,-500.0,0.00016438,2]
[327468487,1716096646478,-602.15,0.00016438,2]
[327468489,1716096646487,-500.0,0.00016438,2]
[327468491,1716096646496,-2241.1,0.00016438,2]
[327468493,1716096646505,-504.10685825,0.00016438,2]
[327468495,1716096646515,-501.55143669,0.00016438,2]
[327468497,1716096646524,-504.13679481,0.00016438,2]
[327468499,1716096646534,-795.69,0.00016438,2]
[327468501,1716096646543,-503.77215781,0.00016438,2]
[327468503,1716096646552,-1666.31,0.00016438,2]
[327468505,1716096646561,-500.0,0.00016438,2]
[327468507,1716096646570,-406.70824132,0.00016438,2]
[327468509,1716096646580,-500.0,0.00016438,2]
[327468511,1716096646588,-500.0,0.00016438,2]
[327468512,1716096646598,-500.0,0.00016438,2]
[327468514,1716096646607,-500.0,0.00016438,2]
[327468516,1716096646617,-1503.26,0.00016438,2]
[327468518,1716096646627,-500.0,0.00016438,2]
[327468520,1716096646636,-500.69422441,0.00016438,2]
[327468522,1716096646646,-500.0,0.00016438,2]
[327468524,1716096646655,-500.0,0.00016438,2]
[327468526,1716096646665,-501.95049145,0.00016438,2]
[327468527,1716096646674,-500.0,0.00016438,2]
[327468528,1716096646684,-500.0,0.00016438,2]
[327468529,1716096646693,-500.0,0.00016438,2]
[327468530,1716096646702,-507.59007459,0.00016438,2]
[327468531,1716096646712,-500.0,0.00016438,2]
[327468532,1716096646721,-500.0,0.00016438,2]
[327468533,1716096646818,-500.0,0.00016438,2]
[327468534,1716096646828,-504.29121324,0.00016438,2]
[327468535,1716096646838,-502.8322985,0.00016438,2]
[327468537,1716096646847,-503.10977151,0.00016438,2]
[327468539,1716096646857,-502.06069218,0.00016438,2]
[327468541,1716096646866,-500.0,0.00016438,2]
[327468543,1716096646876,-502.01990432,0.00016438,2]
[327468545,1716096646885,-500.0,0.00016438,2]
[327468547,1716096646895,-621.09,0.00016438,2]
[327468549,1716096646905,-505.29537352,0.00016438,2]
[327468551,1716096646914,-1355.12,0.00016438,2]
[327468553,1716096646923,-507.71402908,0.00016438,2]
[327468555,1716096646932,-500.0,0.00016438,2]
[327468557,1716096646942,-1181.7,0.00016438,2]
[327468559,1716096646951,-505.72534826,0.00016438,2]
[327468561,1716096646960,-500.0,0.00016438,2]
[327468563,1716096646969,-500.0,0.00016438,2]
[327468565,1716096646979,-500.0,0.00016438,2]
[327468567,1716096646989,-500.0,0.00016438,2]
[327468569,1716096646999,-1087.56,0.00016438,2]
[327468571,1716096647008,-500.0,0.00016438,2]
[327468573,1716096647018,-500.0,0.00016438,2]
[327468575,1716096647027,-1056.91,0.00016438,2]
[327468576,1716096647036,-500.98597577,0.00016438,2]
[327468578,1716096647045,-654.1,0.00016438,2]
[327468580,1716096647055,-720.96,0.00016438,2]
[327468582,1716096647064,-500.0,0.00016438,2]
[327468584,1716096647075,-501.91373217,0.00016438,2]
[327468586,1716096647085,-358.13339378,0.00016438,2]
[327468589,1716096647095,-500.0,0.00016438,2]
[327468590,1716096647105,-501.18159476,0.00016438,2]
[327468592,1716096647114,-532.09,0.00016438,2]
[327468594,1716096647124,-500.0,0.00016438,2]
[327468596,1716096647133,-502.84623527,0.00016438,2]
[327468599,1716096647143,-506.26634007,0.00016438,2]
[327468601,1716096647153,-519.39318471,0.00016438,2]
[327468602,1716096647163,-3263.38,0.00016438,2]
[327468604,1716096647173,-1979.49,0.00016438,2]
[327468606,1716096647183,-500.0,0.00016438,2]
[327468609,1716096647192,-500.0,0.00016438,2]
[327468610,1716096647202,-500.0,0.00016438,2]
[327468613,1716096647212,-501.88449292,0.00016438,2]
[327468615,1716096647222,-1378.18,0.00016438,2]
[327468616,1716096647231,-500.0,0.00016438,2]
[327468618,1716096647244,-502.06944726,0.00016438,2]
[327468620,1716096647254,-253.70434528,0.00016438,2]
[327468622,1716096647263,-695.91,0.00016438,2]
[327468624,1716096647273,-500.0,0.00016438,2]
[327468626,1716096647283,-500.0,0.00016438,2]
[327468628,1716096647294,-500.0,0.00016438,2]
[327468630,1716096647304,-500.0,0.00016438,2]
[327468632,1716096647313,-500.0,0.00016438,2]
[327468634,1716096647325,-502.02,0.00016438,2]
[327468636,1716096647335,-650.91,0.00016438,2]
[327468638,1716096647344,-839.77,0.00016438,2]
[327468640,1716096647354,-501.2648262,0.00016438,2]
[327468642,1716096647363,-274.00596325,0.00016438,2]
[327468644,1716096647374,-506.86,0.00016438,2]
[327468646,1716096647383,-3600.04,0.00016438,2]
[327468648,1716096647393,-457.55526609,0.00016438,2]
[327468650,1716096647403,-1365.81,0.00016438,2]
[327468652,1716096647413,-500.0,0.00016438,2]
[327468654,1716096647423,-1172.96,0.00016438,2]
[327468656,1716096647432,-2329.58,0.00016438,2]
[327468658,1716096647442,-500.0,0.00016438,2]
[327468660,1716096647452,-1053.19,0.00016438,2]
[327468662,1716096647461,-557.12877549,0.00016438,2]
[327468664,1716096647471,-500.0,0.00016438,2]
[327468666,1716096647480,-500.0,0.00016438,2]
[327468668,1716096647491,-500.0,0.00016438,2]
[327468670,1716096647500,-501.87918608,0.00016438,2]
[327468672,1716096647509,-500.0,0.00016438,2]
[327468674,1716096647519,-501.55563819,0.00016438,2]
[327468676,1716096647528,-500.0,0.00016438,2]
[327468678,1716096647538,-500.0,0.00016438,2]
[327468680,1716096647547,-1003.15024076,0.00016438,2]
[327468682,1716096647557,-501.35444574,0.00016438,2]
[327468684,1716096647567,-500.0,0.00016438,2]
[327468686,1716096647576,-500.0,0.00016438,2]
[327468688,1716096647585,-500.0,0.00016438,2]
[327468690,1716096647595,-503.5258426,0.00016438,2]
[327468691,1716096647604,-502.28399445,0.00016438,2]
[327468694,1716096647614,-500.0,0.00016438,2]
[327468696,1716096647623,-500.0,0.00016438,2]
[327468697,1716096647633,-500.0,0.00016438,2]
[327468700,1716096647642,-237.18335744,0.00016438,2]
[327468702,1716096647652,-1859.22,0.00016438,2]
[327468703,1716096647662,-2021.65,0.00016438,2]
[327468706,1716096647671,-500.0,0.00016438,2]
[327468708,1716096647681,-503.03869096,0.00016438,2]
[327468710,1716096647691,-500.9580454,0.00016438,2]
[327468712,1716096647700,-500.0,0.00016438,2]
[327468714,1716096647710,-500.0,0.00016438,2]
[327468716,1716096647719,-502.97387837,0.00016438,2]
[327468718,1716096647728,-500.0,0.00016438,2]
[327468720,1716096647739,-888.21,0.00016438,2]
[327468722,1716096647749,-500.0,0.00016438,2]
[327468724,1716096647758,-562.03122551,0.00016438,2]
[327468726,1716096647768,-501.33730142,0.00016438,2]
[327468728,1716096647777,-603.94,0.00016438,2]
[327468730,1716096647787,-502.49732501,0.00016438,2]
[327468732,1716096647796,-505.63827501,0.00016438,2]
[327468734,1716096647805,-501.00411082,0.00016438,2]
[327468736,1716096647814,-502.06850714,0.00016438,2]
[327468738,1716096647824,-3069.13,0.00016438,2]
[327468740,1716096647833,-502.0529386,0.00016438,2]
[327468742,1716096647843,-500.0,0.00016438,2]
[327468744,1716096647852,-500.0,0.00016438,2]
[327468746,1716096647862,-500.0,0.00016438,2]
[327468748,1716096647871,-500.0,0.00016438,2]
[327468750,1716096647880,-500.0,0.00016438,2]
[327468752,1716096647889,-501.72321868,0.00016438,2]
[327468754,1716096647899,-500.0,0.00016438,2]
[327468756,1716096647909,-526.59294344,0.00016438,2]
[327468758,1716096647918,-500.0,0.00016438,2]
[327468760,1716096647927,-502.60211012,0.00016438,2]
[327468762,1716096647937,-504.02122144,0.00016438,2]
[327468764,1716096647946,-500.0,0.00016438,2]
[327468766,1716096647955,-500.0,0.00016438,2]
[327468768,1716096647965,-501.00145169,0.00016438,2]
[327468770,1716096647975,-3458.67,0.00016438,2]
[327468771,1716096647983,-500.0,0.00016438,2]
[327468773,1716096647993,-500.4770435,0.00016438,2]
[327468775,1716096648002,-501.39993134,0.00016438,2]
[327468777,1716096648011,-503.68056151,0.00016438,2]
[327468779,1716096648022,-500.0,0.00016438,2]
[327468781,1716096648031,-1296.84,0.00016438,2]
[327468783,1716096648040,-500.0,0.00016438,2]
[327468785,1716096648050,-500.0,0.00016438,2]
[327468788,1716096648060,-533.9,0.00016438,2]
[327468790,1716096648070,-330.29789166,0.00016438,2]
[327468791,1716096648079,-2084.88,0.00016438,2]
[327468794,1716096648089,-500.0,0.00016438,2]
[327468795,1716096648098,-500.0,0.00016438,2]
[327468798,1716096648108,-501.60796503,0.00016438,2]
[327468799,1716096648118,-500.0,0.00016438,2]
[327468802,1716096648128,-2038.27,0.00016438,2]
[327468803,1716096648137,-501.49832076,0.00016438,2]
[327468806,1716096648147,-500.0,0.00016438,2]
[327468808,1716096648157,-502.9133301,0.00016438,2]
[327468810,1716096648166,-500.0,0.00016438,2]
[327468811,1716096648175,-505.16,0.00016438,2]
[327468813,1716096648184,-519.03123721,0.00016438,2]
[327468815,1716096648194,-508.54392585,0.00016438,2]
[327468817,1716096648203,-500.65817445,0.00016438,2]
[327468819,1716096648213,-619.54,0.00016438,2]
[327468821,1716096648222,-495.24162193,0.00016438,2]
[327468823,1716096648232,-500.0,0.00016438,2]
[327468825,1716096648246,-903.93,0.00016438,2]
[327468827,1716096648255,-501.20124946,0.00016438,2]
[327468829,1716096648264,-500.0,0.00016438,2]
[327468831,1716096648274,-500.0,0.00016438,2]
[327468833,1716096648283,-500.0,0.00016438,2]
[327468835,1716096648293,-500.0,0.00016438,2]
[327468837,1716096648302,-501.39414237,0.00016438,2]
[327468839,1716096648311,-500.0,0.00016438,2]
[327468841,1716096648323,-627.59,0.00016438,2]
[327468843,1716096648334,-7278.93,0.00016438,2]
[327468845,1716096648343,-4501.18,0.00016438,2]
[327468847,1716096648352,-500.11756796,0.00016438,2]
[327468849,1716096648361,-500.0,0.00016438,2]
[327468851,1716096648370,-501.91408572,0.00016438,2]
[327468853,1716096648380,-500.0,0.00016438,2]
[327468855,1716096648390,-500.0,0.00016438,2]
[327468857,1716096648399,-432.51688171,0.00016438,2]
[327468859,1716096648409,-500.52669088,0.00016438,2]
[327468869,1716096648495,-2148.64,0.00016438,2]
[327468871,1716096648504,-500.0,0.00016438,2]
[327468873,1716096648513,-1585.76,0.00016438,2]
[327468875,1716096648523,-503.17373269,0.00016438,2]
[327468877,1716096648532,-500.0,0.00016438,2]
[327468878,1716096648541,-500.0,0.00016438,2]
[327468880,1716096648551,-500.0,0.00016438,2]
[327468882,1716096648560,-500.58204756,0.00016438,2]
[327468885,1716096648570,-500.0,0.00016438,2]
[327468887,1716096648580,-500.0,0.00016438,2]
[327468888,1716096648589,-500.0,0.00016438,2]
[327468890,1716096648598,-500.0,0.00016438,2]
[327468892,1716096648608,-1684.05,0.00016438,2]
[327468894,1716096648617,-1215.13,0.00016438,2]
[327468897,1716096648627,-500.0,0.00016438,2]
[327468898,1716096648636,-53749.9,0.00016438,2]
[327468901,1716096648646,-496.93410603,0.00016438,2]
[327468903,1716096648656,-766.92,0.00016438,2]
[327468904,1716096648665,-500.0,0.00016438,2]
[327468906,1716096648674,-500.0,0.00016438,2]
[327468908,1716096648683,-500.0,0.00016438,2]
[327468910,1716096648693,-502.3,0.00016438,2]
[327468912,1716096648702,-500.0,0.00016438,2]
[327468914,1716096648712,-7205.76,0.00016438,2]
[327468916,1716096648722,-511.38108203,0.00016438,2]
[327468918,1716096648731,-825.76,0.00016438,2]
[327468920,1716096648741,-825.76,0.00016438,2]
[327468922,1716096648751,-825.76,0.00016438,2]
[327468924,1716096648760,-825.76,0.00016438,2]
[327468926,1716096648769,-825.76,0.00016438,2]
[327468928,1716096648778,-500.0,0.00016438,2]
[327468930,1716096648788,-825.76,0.00016438,2]
[327468932,1716096648797,-825.76,0.00016438,2]
[327468934,1716096648807,-825.76,0.00016438,2]
[327468936,1716096648816,-825.76,0.00016438,2]
[327468938,1716096648825,-825.76,0.00016438,2]
[327468940,1716096648835,-6216.98,0.00016438,2]
[327468942,1716096648845,-825.76,0.00016438,2]
[327468944,1716096648854,-825.76,0.00016438,2]
[327468946,1716096648864,-502.69574356,0.00016438,2]
[327468949,1716096648875,-825.76,0.00016438,2]
[327468950,1716096648885,-825.76,0.00016438,2]
[327468952,1716096648895,-825.76,0.00016438,2]
[327468954,1716096648905,-825.76,0.00016438,2]
[327468956,1716096648914,-500.0,0.00016438,2]
[327468959,1716096648924,-500.0,0.00016438,2]
[327468960,1716096648933,-500.0,0.00016438,2]
[327468962,1716096648943,-500.0,0.00016438,2]
[327468964,1716096648952,-500.0,0.00016438,2]
[327468966,1716096648962,-528.0,0.00016438,2]
[327468968,1716096648972,-500.0,0.00016438,2]
[327468970,1716096648983,-500.0,0.00016438,2]
[327468972,1716096648994,-500.0,0.00016438,2]
[327468974,1716096649004,-500.0,0.00016438,2]
[327468976,1716096649013,-504.84849747,0.00016438,2]
[327468978,1716096649023,-2505.13,0.00016438,2]
[327468980,1716096649033,-500.86949748,0.00016438,2]
[327468982,1716096649042,-500.0,0.00016438,2]
[327468984,1716096649052,-346.16888092,0.00016438,2]
[327468986,1716096649061,-503.34168553,0.00016438,2]
[327468989,1716096649071,-514.28408905,0.00016438,2]
[327468990,1716096649081,-510.15148823,0.00016438,2]
[327468992,1716096649091,-500.0,0.00016438,2]
[327468995,1716096649101,-500.0,0.00016438,2]
[327468997,1716096649110,-1568.79,0.00016438,2]
[327468998,1716096649119,-1050.68,0.00016438,2]
[327469000,1716096649129,-500.0,0.00016438,2]
[327469002,1716096649139,-501.02790707,0.00016438,2]
[327469004,1716096649148,-500.59442073,0.00016438,2]
[327469007,1716096649159,-500.49158504,0.00016438,2]
[327469009,1716096649168,-500.0,0.00016438,2]
[327469011,1716096649177,-2527.87,0.00016438,2]
[327469012,1716096649186,-500.0,0.00016438,2]
[327469014,1716096649196,-502.92574033,0.00016438,2]
[327469017,1716096649206,-508.7863585,0.00016438,2]
[327469018,1716096649215,-500.0,0.00016438,2]
[327469020,1716096649224,-7087.73,0.00016438,2]
[327469022,1716096649234,-271.21934299,0.00016438,2]
[327469023,1716096649249,-500.98868798,0.00016438,2]
[327469024,1716096649258,-500.0,0.00016438,2]
[327469025,1716096649268,-502.30883703,0.00016438,2]
[327469027,1716096649277,-500.0,0.00016438,2]
[327469029,1716096649288,-873.0,0.00016438,2]
[327469031,1716096649297,-500.0,0.00016438,2]
[327469033,1716096649307,-500.0,0.00016438,2]
[327469035,1716096649317,-622.06246306,0.00016438,2]
[327469037,1716096649328,-294.29819785,0.00016438,2]
[327469039,1716096649337,-507.54352727,0.00016438,2]
[327469041,1716096649346,-2000.33,0.00016438,2]
[327469043,1716096649355,-500.0,0.00016438,2]
[327469045,1716096649364,-237.53669569,0.00016438,2]
[327469046,1716096649374,-500.0,0.00016438,2]
[327469048,1716096649383,-538.83718936,0.00016438,2]
[327469051,1716096649392,-357.2490348,0.00016438,2]
[327469053,1716096649402,-500.0,0.00016438,2]
[327469055,1716096649411,-501.98841443,0.00016438,2]
[327469057,1716096649420,-3715.5,0.00016438,2]
[327469058,1716096649430,-500.0,0.00016438,4]
[327469061,1716096649439,-3715.5,0.00016438,2]
[327469063,1716096649448,-3715.5,0.00016438,2]
[327469065,1716096649458,-3715.5,0.00016438,2]
[327469066,1716096649467,-3715.5,0.00016438,2]
[327469068,1716096649477,-3715.5,0.00016438,2]
[327469070,1716096649486,-500.0,0.00016438,2]
[327469073,1716096649496,-3715.5,0.00016438,2]
[327469075,1716096649506,-1161.71,0.00016438,2]
[327469077,1716096649516,-3715.5,0.00016438,2]
[327469079,1716096649526,-3715.5,0.00016438,2]
[327469081,1716096649535,-1417.0,0.00016438,2]
[327469083,1716096649544,-3715.5,0.00016438,2]
[327469085,1716096649554,-500.0,0.00016438,2]
[327469087,1716096649564,-3715.5,0.00016438,2]
[327469089,1716096649574,-3715.5,0.00016438,2]
[327469091,1716096649583,-3715.5,0.00016438,2]
[327469093,1716096649593,-3715.5,0.00016438,2]
[327469095,1716096649602,-3715.5,0.00016438,2]
[327469097,1716096649612,-3715.5,0.00016438,2]
[327469099,1716096649621,-3715.5,0.00016438,2]
[327469101,1716096649631,-500.0,0.00016438,2]
[327469103,1716096649640,-500.0,0.00016438,2]
[327469105,1716096649649,-507.7258579,0.00016438,2]
[327469107,1716096649659,-500.0,0.00016438,2]
[327469109,1716096649668,-500.0,0.00016438,2]
[327469111,1716096649678,-501.85736491,0.00016438,2]
[327469113,1716096649688,-500.0,0.00016438,2]
[327469115,1716096649697,-500.0,0.00016438,2]
[327469117,1716096649707,-551.48,0.00016438,2]
[327469119,1716096649717,-500.0,0.00016438,2]
[327469121,1716096649727,-3009.95,0.00016438,2]
[327469123,1716096649736,-514.13963659,0.00016438,2]
[327469125,1716096649746,-500.0,0.00016438,2]
[327469127,1716096649756,-503.92300971,0.00016438,2]
[327469129,1716096649766,-500.0,0.00016438,2]
[327469131,1716096649775,-501.01635491,0.00016438,2]
[327469133,1716096649784,-680.43,0.00016438,2]
[327469135,1716096649794,-500.0,0.00016438,2]
[327469137,1716096649804,-309.80536681,0.00016438,2]
[327469139,1716096649813,-500.0,0.00016438,2]
[327469141,1716096649823,-500.0,0.00016438,2]
[327469143,1716096649833,-500.0,0.00016438,2]
[327469145,1716096649842,-500.0,0.00016438,2]
[327469147,1716096649852,-500.0,0.00016438,2]
[327469149,1716096649861,-500.0,0.00016438,2]
[327469151,1716096649871,-526.99,0.00016438,2]
[327469154,1716096649881,-500.0,0.00016438,2]
[327469156,1716096649890,-500.0,0.00016438,2]
[327469158,1716096649900,-500.0,0.00016438,2]
[327469160,1716096649909,-500.0,0.00016438,2]
[327469162,1716096649919,-500.0,0.00016438,2]
[327469164,1716096649928,-604.87,0.00016438,2]
[327469166,1716096649938,-1762.72,0.00016438,2]
[327469168,1716096649948,-500.0,0.00016438,2]
[327469177,1716096650030,-500.0,0.00016438,2]
[327469179,1716096650040,-1016.6,0.00016438,2]
[327469181,1716096650050,-4333.17,0.00016438,2]
[327469183,1716096650059,-527.19,0.00016438,2]
[327469185,1716096650069,-500.0,0.00016438,2]
[327469187,1716096650079,-500.0,0.00016438,2]
[327469189,1716096650088,-500.0,0.00016438,2]
[327469191,1716096650098,-500.0,0.00016438,2]
[327469194,1716096650107,-3072.66,0.00016438,2]
[327469196,1716096650117,-305.98705705,0.00016438,2]
[327469198,1716096650126,-500.0,0.00016438,2]
[327469200,1716096650136,-500.0,0.00016438,2]
[327469201,1716096650145,-500.0,0.00016438,2]
[327469204,1716096650155,-500.0,0.00016438,2]
[327469206,1716096650164,-500.0,0.00016438,2]
[327469208,1716096650174,-500.0,0.00016438,2]
[327469210,1716096650183,-500.0,0.00016438,2]
[327469212,1716096650192,-500.0,0.00016438,2]
[327469213,1716096650201,-500.0,0.00016438,2]
[327469216,1716096650211,-500.0,0.00016438,2]
[327469217,1716096650220,-500.0,0.00016438,2]
[327469220,1716096650230,-500.0,0.00016438,2]
[327469221,1716096650241,-500.0,0.00016438,2]
[327469224,1716096650252,-500.0,0.00016438,2]
[327469225,1716096650261,-500.0,0.00016438,2]
[327469227,1716096650270,-500.0,0.00016438,2]
[327469229,1716096650279,-500.0,0.00016438,2]
[327469232,1716096650291,-500.0,0.00016438,2]
[327469233,1716096650301,-566.60467212,0.00016438,2]
[327469236,1716096650310,-500.0,0.00016438,2]
[327469238,1716096650321,-500.0,0.00016438,2]
[327469239,1716096650330,-2197.65,0.00016438,2]
[327469242,1716096650340,-500.0,0.00016438,2]
[327469243,1716096650349,-500.0,0.00016438,2]
[327469245,1716096650358,-500.0,0.00016438,2]
[327469248,1716096650368,-500.0,0.00016438,2]
[327469250,1716096650378,-500.0,0.00016438,2]
[327469252,1716096650389,-503.27334307,0.00016438,2]
[327469254,1716096650398,-500.0,0.00016438,2]
[327469255,1716096650408,-3251.34,0.00016438,2]
[327469257,1716096650417,-501.70402084,0.00016438,2]
[327469259,1716096650426,-501.94740107,0.00016438,2]
[327469261,1716096650435,-500.0,0.00016438,2]
[327469263,1716096650444,-508.73255038,0.00016438,2]
[327469265,1716096650453,-501.4130378,0.00016438,2]
[327469267,1716096650463,-500.7252713,0.00016438,2]
[327469269,1716096650473,-511.29336514,0.00016438,2]
[327469271,1716096650482,-500.0,0.00016438,2]
[327469273,1716096650491,-2562.71,0.00016438,2]
[327469275,1716096650501,-500.0,0.00016438,2]
[327469277,1716096650510,-505.49934847,0.00016438,2]
[327469279,1716096650520,-500.0,0.00016438,2]
[327469281,1716096650530,-683.55,0.00016438,2]
[327469283,1716096650539,-1001.67678661,0.00016438,2]
[327469285,1716096650548,-500.0,0.00016438,2]
[327469287,1716096650557,-1192.01,0.00016438,2]
[327469289,1716096650567,-634.08,0.00016438,2]
[327469291,1716096650576,-846.92,0.00016438,2]
[327469293,1716096650586,-5131.32,0.00016438,2]
[327469295,1716096650595,-500.0,0.00016438,2]
[327469297,1716096650605,-500.0,0.00016438,2]
[327469299,1716096650614,-500.0,0.00016438,2]
[327469301,1716096650624,-500.0,0.00016438,2]
[327469303,1716096650633,-12975.03,0.00016438,2]
[327469305,1716096650642,-500.0,0.00016438,2]
[327469307,1716096650652,-2002.08,0.00016438,2]
[327469309,1716096650662,-500.49309167,0.00016438,2]
[327469311,1716096650671,-949.94,0.00016438,2]
[327469313,1716096650680,-500.0,0.00016438,2]
[327469316,1716096650691,-818.08,0.00016438,2]
[327469318,1716096650701,-500.0,0.00016438,2]
[327469320,1716096650711,-167.419493,0.00016438,2]
[327469321,1716096650721,-167.419493,0.00016438,2]
[327469323,1716096650730,-167.419493,0.00016438,2]
[327469326,1716096650740,-167.419493,0.00016438,2]
[327469328,1716096650749,-167.419493,0.00016438,2]
[327469330,1716096650758,-167.419493,0.00016438,2]
[327469332,1716096650767,-167.419493,0.00016438,2]
[327469333,1716096650776,-167.419493,0.00016438,2]
[327469335,1716096650786,-167.419493,0.00016438,2]
[327469337,1716096650794,-167.419493,0.00016438,2]
[327469339,1716096650802,-167.419493,0.00016438,2]
[327469341,1716096650812,-167.419493,0.00016438,2]
[327469343,1716096650821,-167.419493,0.00016438,2]
[327469345,1716096650831,-167.419493,0.00016438,2]
[327469347,1716096650840,-167.419493,0.00016438,2]
[327469349,1716096650849,-167.419493,0.00016438,2]
[327469351,1716096650858,-167.419493,0.00016438,2]
[327469353,1716096650868,-167.419493,0.00016438,2]
[327469355,1716096650877,-167.419493,0.00016438,2]
[327469357,1716096650887,-167.419489,0.00016438,2]
[327469359,1716096650896,-274.0226886,0.000165,2]
[327469361,1716096650905,-1058.58878692,0.000165,2]
[327469363,1716096650915,-825.76,0.0001671,2]
[327469365,1716096650924,-3715.5,0.0001671,2]
[327469367,1716096650933,-825.76,0.00016711,2]
[327469369,1716096650943,-825.76,0.00016711,2]
[327469371,1716096650953,-825.76,0.00016711,2]
[327469373,1716096650963,-825.76,0.00016711,2]
[327469375,1716096650972,-825.76,0.00016711,2]
[327469377,1716096650981,-825.76,0.00016711,2]
[327469379,1716096650991,-825.88751459,0.00016711,2]
[327469381,1716096651001,-3715.5,0.00016711,2]
[327469383,1716096651011,-3715.5,0.00016711,2]
[327469385,1716096651020,-3715.5,0.00016711,2]
[327469387,1716096651030,-3715.5,0.00016711,2]
[327469389,1716096651040,-3715.5,0.00016711,2]
[327469391,1716096651049,-3715.6537553,0.00016711,2]
[327469393,1716096651059,-1198.87,0.00016712,2]
[327469395,1716096651069,-758.55,0.00016712,2]
[327469398,1716096651079,-500.0,0.00016712,2]
[327469399,1716096651089,-500.0,0.00016712,2]
[327469402,1716096651098,-248.42001282,0.00016712,2]
[327469404,1716096651107,-732.78464397,0.00016712,2]
[327469431,1716096651359,-284.0,0.00016712,2]
[327470627,1716097245914,150.0,0.00013661,2]
[327470628,1716097245984,150.0,0.00014216,2]
[327470629,1716097246022,150.0,0.00013661,3]
[327470630,1716097246066,150.0,0.00013938,2]
[327470631,1716097246126,150.0,0.00014493,2]
[327470632,1716097246185,150.0,0.0001477,2]
[327470633,1716097256966,150.0,0.00013661,3]
[327470634,1716097257019,150.0,0.00013661,2]
[327470635,1716097257080,150.0,0.00013938,2]
[327470655,1716097826640,150.0,0.00013671,3]
[327470685,1716097832816,-490.5000166,0.00015599,2]